Workbook

Sheet Sheet1
A1: 2022 Preloan Procedures and Requirements for Telecommunications Programs (OMB No. 0572-0079)
A2: Section of Rule | B2: Title | C2: Form No. (if any) | D2: No. of Respondents | E2: Reports Filed | F2: Total Responses (D) x (E) | G2: Estimated No. of Manhours per response | H2: Estimated Total Manhours (F) x (G) | I2: Wage Class | J2: Total Cost (H) x (I)
A7: (a) | B7: (b) | C7: (c) | D7: (d) | E7: (e) | G7: (g) | H7: (h) | I7: (i) | J7: (j)
A8: REPORTING REQUIREMENTS - NO FORMS - COMPLETED IN RDApply
B9: NOTE: Applicants must complete the seven (7) requirements listed below. As applications are completed in RDApply, per response time of 259.5 hours is a combined total of each requirement's individual per response time.
A10: 1737.21 | B10: The completed loan application -- Loan appplication form | C10: none | D10: 43 | E10: 1 | F10: =E10*D10 -> 43 | G10: 0.8 | H10: =SUM(F10*G10) -> 32.25 | I10: 64.74 | J10: =(H10*I10) -> $2,087.75
A11: 1737.22 | B11: Supplementary information and toll settlement data (includes RUS 291) | C11: none | D11: 43 | E11: 1 | F11: 43 | G11: =2+80 -> 82 | H11: 3,526 | I11: 64.74 | J11: =(H11*I11) -> $228,260.55
A12: 1737.30 & 1735.31 | B12: General Information & Area Coverage Survey (ACS) | C12: none | D12: 43 | E12: 1 | F12: 43 | G12: 4 | H12: 172 | I12: 64.74 | J12: $11,134.66
A13: 1737.32 | B13: Loan Design Summary | C13: none | D13: 43 | E13: 1 | F13: 43 | G13: 3 | H13: 129 | I13: 64.74 | J13: $8,351.01
A14: 1737.32 | B14: Construction Cost Estimates | C14: none | D14: 43 | E14: 1 | F14: 43 | G14: 120 | H14: 5,160 | I14: 64.74 | J14: $334,019.99
A15: 1737.32 | B15: Narrative portion of Loan Design | C15: none | D15: 43 | E15: 1 | F15: 43 | G15: 26 | H15: 1,118 | I15: 64.74 | J15: $72,375.41
B16: Loan Processing Procedures
A17: 1737.1 | B17: Prerequisites to Release and Advance of Funds | C17: none | D17: 43 | E17: 1 | F17: =E17*D17 -> 43 | G17: 24 | H17: =SUM(F17*G17) -> 1,032 | I17: 64.74 | J17: =(H17*I17) -> $66,808.07
D18: 0 | F18: =SUM(F10:F17) -> 301 | G18: =SUM(G10:G17) -> 259.75 | H18: =SUM(H10:H17) -> 11,169 | J18: =SUM(J10:J17) -> 723,037.43
B20: Acquisitions and Mergers
A21: 1735.74, 1735.80 and 1735.90 | B21: Submission of Data, Report on Telephone Acquistion | C21: none | D21: 1 | E21: 1 | F21: 1 | G21: 16 | H21: =SUM(F21*G21) -> 16 | I21: 64.74 | J21: =(H21*I21) -> $1,035.78
B22: Loan Requirements & Preloan Procedures
A23: 1737.21 | B23: Loan appplication form | C23: none | D23: 1 | E23: 1 | F23: =E23*D23 -> 1 | G23: 0.5 | H23: =SUM(F23*G23) -> 1 | I23: 64.74 | J23: $32.37
A24: 1737.22 | B24: Supplementary information and toll settlement data (includes RUS 291) | C24: none | D24: 1 | E24: 1 | F24: 1 | G24: =2+80 -> 82 | H24: 82 | I24: 64.74 | J24: $5,308.39
A25: 1737.30 & 1735.31 | B25: General Information & Area Coverage Survey (ACS) | C25: none | D25: 1 | E25: 1 | F25: 1 | G25: 4 | H25: 4 | I25: 64.74 | J25: $258.95
A26: 1737.32 | B26: Loan Design Summary | C26: none | D26: 1 | E26: 1 | F26: 1 | G26: 3 | H26: 3 | I26: 64.74 | J26: $194.21
A27: 1737.32 | B27: Construction Cost Estimates | C27: none | D27: 1 | E27: 1 | F27: 1 | G27: 120 | H27: 120 | I27: 64.74 | J27: $7,768.38
A28: 1737.32 | B28: Narrative portion of Loan Design | C28: none | D28: 1 | E28: 1 | F28: 1 | G28: 26 | H28: 26 | I28: 64.74 | J28: $1,683.15
B29: Loan Processing Procedures | J29: 0
A30: 1737.1 | B30: Prerequisites to Release and Advance of Funds | C30: none | D30: 1 | E30: 1 | F30: =E30*D30 -> 1 | G30: 24 | H30: =SUM(F30*G30) -> 24 | I30: 64.74 | J30: $1,553.68
J31: 0
D32: 0 | F32: =SUM(F21:F30,F10:F18) -> 610 | G32: =SUM(G21:G31) -> 275.50 | H32: =SUM(H21:H30,H10:H17) -> 11,445 | J32: =SUM(J21:J30,J10:J19) -> 1,463,909.77

Sheet Sheet2
B1: 2019 | C1: 2020 | D1: 2021 | F1: Total
A2: Approved and In-Process | B2: 10 | C2: 13 | D2: 20 | F2: 43
A3: Approved Only | B3: 4 | C3: 10 | D3: 12 | F3: 26
A4: In-Process Only | B4: 6 | C4: 3 | D4: 8 | F4: 17

Sheet Sheet3
